Workbook

Sheet Arkusz1
A1: NUMER STREFY | B1: ∑P' | D1: ∑A' *k
B2: Produkcja | D2: Atrakcja
A3: 1 | B3: 137 | D3: 110 | F3: =D3/5115 -> 0.02150537634 | H3: 0.02150537634 | I3: 0.03812316716 | J3: 0.04203323558 | K3: 0.06920821114 | L3: 0.04672531769 | M3: 0.04183773216 | N3: 0.06217008798 | O3: 0.04926686217 | P3: 0.0330400782 | Q3: 0.08211143695 | R3: 0.04672531769 | S3: 0.02913000978 | T3: 0.05474095797 | U3: 0.04516129032 | V3: 0.08113391984 | W3: 0.06353861193 | X3: 0.0293255132 | Y3: 0.04477028348 | Z3: 0.04828934506 | AA3: 0.04183773216 | AB3: 0.0293255132
A4: 2 | B4: 45 | D4: 195 | F4: =D4/5115 -> 0.03812316716
A5: 3 | B5: 586 | D5: 215 | F5: 0.04203323558
A6: 4 | B6: 223 | D6: 354 | F6: 0.06920821114
A7: 5 | B7: 247 | D7: 239 | F7: 0.04672531769
A8: 6 | B8: 139 | D8: 214 | F8: 0.04183773216
A9: 7 | B9: 133 | D9: 318 | F9: 0.06217008798
A10: 8 | B10: 258 | D10: 252 | F10: 0.04926686217
A11: 9 | B11: 87 | D11: 169 | F11: 0.0330400782
A12: 10 | B12: 217 | D12: 420 | F12: 0.08211143695
A13: 11 | B13: 351 | D13: 239 | F13: 0.04672531769
A14: 12 | B14: 172 | D14: 149 | F14: 0.02913000978
A15: 13 | B15: 347 | D15: 280 | F15: 0.05474095797
A16: 14 | B16: 144 | D16: 231 | F16: 0.04516129032
A17: 15 | B17: 228 | D17: 415 | F17: 0.08113391984
A18: 16 | B18: 188 | D18: 325 | F18: 0.06353861193
A19: 17 | B19: 317 | D19: 150 | F19: 0.0293255132
A20: 18 | B20: 280 | D20: 229 | F20: 0.04477028348
A21: 19 | B21: 650 | D21: 247 | F21: 0.04828934506
A22: 20 | B22: 166 | D22: 214 | F22: 0.04183773216
A23: 21 | B23: 200 | D23: 150 | F23: 0.0293255132
B24: =SUM(B3:B23) -> 5115 | D24: =SUM(D3:D23) -> 5115

Sheet macierz
C1: 1 | D1: 2 | E1: 3 | F1: 4 | G1: 5 | H1: 6 | I1: 7 | J1: 8 | K1: 9 | L1: 10 | M1: 11 | N1: 12 | O1: 13 | P1: 14 | Q1: 15 | R1: 16 | S1: 17 | T1: 18 | U1: 19 | V1: 20 | W1: 21 | X1: 22 | Y1: 23 | Z1: 24 | AA1: 25 | AB1: 26 | AC1: 27 | AD1: 28 | AE1: 29 | AF1: 30
B2: P/A | C2: 0.02150537634 | D2: 0.03812316716 | E2: 0.04203323558 | F2: 0.06920821114 | G2: 0.04672531769 | H2: 0.04183773216 | I2: 0.06217008798 | J2: 0.04926686217 | K2: 0.0330400782 | L2: 0.08211143695 | M2: 0.04672531769 | N2: 0.02913000978 | O2: 0.05474095797 | P2: 0.04516129032 | Q2: 0.08113391984 | R2: 0.06353861193 | S2: 0.0293255132 | T2: 0.04477028348 | U2: 0.04828934506 | V2: 0.04183773216 | W2: 0.0293255132 | X2: 196 | Y2: 37 | Z2: 56 | AA2: 115 | AB2: 43 | AC2: 313 | AD2: 48 | AE2: 216 | AF2: 28
A3: 1 | B3: 137 | C3: =$B3*C$2 -> 3 | D3: =$B3*D$2 -> 5 | E3: 6 | F3: 9 | G3: =$B3*G$2 -> 6 | H3: 6 | I3: 9 | J3: 7 | K3: 5 | L3: 11 | M3: 6 | N3: 4 | O3: 7 | P3: 6 | Q3: 11 | R3: 9 | S3: 4 | T3: 6 | U3: 7 | V3: 6 | W3: 4 | X3: =($B3/4926)*X$2 -> 5 | Y3: =($B3/4926)*Y$2 -> 1 | Z3: 2 | AA3: 3 | AB3: 1 | AC3: 9 | AD3: 1 | AE3: 6 | AF3: 1
A4: 2 | B4: 45 | C4: =$B4*C$2 -> 1 | D4: 2 | E4: 2 | F4: 3 | G4: 2 | H4: 2 | I4: 3 | J4: 2 | K4: 1 | L4: 4 | M4: 2 | N4: 1 | O4: 2 | P4: 2 | Q4: 4 | R4: 3 | S4: 1 | T4: 2 | U4: 2 | V4: 2 | W4: =$B4*W$2 -> 1 | X4: =($B4/4926)*X$2 -> 2 | Y4: 0 | Z4: 1 | AA4: 1 | AB4: 0 | AC4: 3 | AD4: 0 | AE4: 2 | AF4: 0
A5: 3 | B5: 586 | C5: 13 | D5: 22 | E5: 25 | F5: 41 | G5: 27 | H5: 25 | I5: 36 | J5: 29 | K5: 19 | L5: 48 | M5: 27 | N5: 17 | O5: 32 | P5: 26 | Q5: 48 | R5: 37 | S5: 17 | T5: 26 | U5: 28 | V5: 25 | W5: 17 | X5: 23 | Y5: 4 | Z5: 7 | AA5: 14 | AB5: 5 | AC5: 37 | AD5: 6 | AE5: 26 | AF5: 3
A6: 4 | B6: 223 | C6: 5 | D6: 9 | E6: 9 | F6: 15 | G6: 10 | H6: 9 | I6: 14 | J6: 11 | K6: 7 | L6: 18 | M6: 10 | N6: 6 | O6: 12 | P6: 10 | Q6: 18 | R6: 14 | S6: 7 | T6: 10 | U6: 11 | V6: 9 | W6: 7 | X6: 9 | Y6: 2 | Z6: 3 | AA6: 5 | AB6: 2 | AC6: 14 | AD6: 2 | AE6: 10 | AF6: 1
A7: 5 | B7: 247 | C7: 5 | D7: 9 | E7: 10 | F7: 17 | G7: 12 | H7: 10 | I7: 15 | J7: 12 | K7: 8 | L7: 20 | M7: 12 | N7: 7 | O7: 14 | P7: 11 | Q7: 20 | R7: 16 | S7: 7 | T7: 11 | U7: 12 | V7: 10 | W7: 7 | X7: 10 | Y7: 2 | Z7: 3 | AA7: 6 | AB7: 2 | AC7: 16 | AD7: 2 | AE7: 11 | AF7: 1
A8: 6 | B8: 139 | C8: 3 | D8: 5 | E8: 6 | F8: 10 | G8: 6 | H8: 6 | I8: 9 | J8: 7 | K8: 5 | L8: 11 | M8: 6 | N8: 4 | O8: 8 | P8: 6 | Q8: 11 | R8: 9 | S8: 4 | T8: 6 | U8: 7 | V8: 6 | W8: 4 | X8: 6 | Y8: 1 | Z8: 2 | AA8: 3 | AB8: 1 | AC8: 9 | AD8: 1 | AE8: 6 | AF8: 1
A9: 7 | B9: 133 | C9: 3 | D9: 5 | E9: 6 | F9: 9 | G9: 6 | H9: 6 | I9: 8 | J9: 7 | K9: 4 | L9: 11 | M9: 6 | N9: 4 | O9: 7 | P9: 6 | Q9: 11 | R9: 8 | S9: 4 | T9: 6 | U9: 6 | V9: 6 | W9: 4 | X9: 5 | Y9: 1 | Z9: 2 | AA9: 3 | AB9: 1 | AC9: 8 | AD9: 1 | AE9: 6 | AF9: 1
A10: 8 | B10: 258 | C10: 6 | D10: 10 | E10: 11 | F10: 18 | G10: 12 | H10: 11 | I10: 16 | J10: 13 | K10: 9 | L10: 21 | M10: 12 | N10: 8 | O10: 14 | P10: 12 | Q10: 21 | R10: 16 | S10: 8 | T10: 12 | U10: 12 | V10: 11 | W10: 8 | X10: 10 | Y10: 2 | Z10: 3 | AA10: 6 | AB10: 2 | AC10: 16 | AD10: 3 | AE10: 11 | AF10: 1
A11: 9 | B11: 87 | C11: 2 | D11: 3 | E11: 4 | F11: 6 | G11: 4 | H11: 4 | I11: 5 | J11: 4 | K11: 3 | L11: 7 | M11: 4 | N11: 3 | O11: 5 | P11: 4 | Q11: 7 | R11: 6 | S11: 3 | T11: 4 | U11: 4 | V11: 4 | W11: 3 | X11: 3 | Y11: 1 | Z11: 1 | AA11: 2 | AB11: 1 | AC11: 6 | AD11: 1 | AE11: 4 | AF11: 0
A12: 10 | B12: 217 | C12: 5 | D12: 8 | E12: 9 | F12: 15 | G12: 10 | H12: 9 | I12: 13 | J12: 11 | K12: 7 | L12: 18 | M12: 10 | N12: 6 | O12: 12 | P12: 10 | Q12: 18 | R12: 14 | S12: 6 | T12: 10 | U12: 10 | V12: 9 | W12: 6 | X12: 9 | Y12: 2 | Z12: 2 | AA12: 5 | AB12: 2 | AC12: 14 | AD12: 2 | AE12: 10 | AF12: 1
A13: 11 | B13: 351 | C13: 8 | D13: 13 | E13: 15 | F13: 24 | G13: 16 | H13: 15 | I13: 22 | J13: 17 | K13: 12 | L13: 29 | M13: 16 | N13: 10 | O13: 19 | P13: 16 | Q13: 28 | R13: 22 | S13: 10 | T13: 16 | U13: 17 | V13: 15 | W13: 10 | X13: 14 | Y13: 3 | Z13: 4 | AA13: 8 | AB13: 3 | AC13: 22 | AD13: 3 | AE13: 15 | AF13: 2
A14: 12 | B14: 172 | C14: 4 | D14: 7 | E14: 7 | F14: 12 | G14: 8 | H14: 7 | I14: 11 | J14: 8 | K14: 6 | L14: 14 | M14: 8 | N14: 5 | O14: 9 | P14: 8 | Q14: 14 | R14: 11 | S14: 5 | T14: 8 | U14: 8 | V14: 7 | W14: 5 | X14: 7 | Y14: 1 | Z14: 2 | AA14: 4 | AB14: 2 | AC14: 11 | AD14: 2 | AE14: 8 | AF14: 1
A15: 13 | B15: 347 | C15: 7 | D15: 13 | E15: 15 | F15: 24 | G15: 16 | H15: 15 | I15: 22 | J15: 17 | K15: 11 | L15: 28 | M15: 16 | N15: 10 | O15: 19 | P15: 16 | Q15: 28 | R15: 22 | S15: 10 | T15: 16 | U15: 17 | V15: 15 | W15: 10 | X15: 14 | Y15: 3 | Z15: 4 | AA15: 8 | AB15: 3 | AC15: 22 | AD15: 3 | AE15: 15 | AF15: 2
A16: 14 | B16: 144 | C16: 3 | D16: 5 | E16: 6 | F16: 10 | G16: 7 | H16: 6 | I16: 9 | J16: 7 | K16: 5 | L16: =$B16*L$2 -> 12 | M16: 7 | N16: 4 | O16: 8 | P16: 7 | Q16: 12 | R16: 9 | S16: 4 | T16: 6 | U16: 7 | V16: 6 | W16: 4 | X16: 6 | Y16: 1 | Z16: 2 | AA16: 3 | AB16: 1 | AC16: 9 | AD16: 1 | AE16: 6 | AF16: 1
A17: 15 | B17: 228 | C17: 5 | D17: 9 | E17: 10 | F17: 16 | G17: 11 | H17: 10 | I17: 14 | J17: 11 | K17: 8 | L17: 19 | M17: 11 | N17: 7 | O17: 12 | P17: 10 | Q17: 18 | R17: 14 | S17: 7 | T17: 10 | U17: 11 | V17: 10 | W17: 7 | X17: 9 | Y17: 2 | Z17: 3 | AA17: 5 | AB17: 2 | AC17: 14 | AD17: 2 | AE17: 10 | AF17: 1
A18: 16 | B18: 188 | C18: 4 | D18: 7 | E18: 8 | F18: 13 | G18: 9 | H18: 8 | I18: 12 | J18: 9 | K18: 6 | L18: 15 | M18: 9 | N18: 5 | O18: 10 | P18: 8 | Q18: 15 | R18: 12 | S18: 6 | T18: 8 | U18: 9 | V18: 8 | W18: 6 | X18: 7 | Y18: 1 | Z18: 2 | AA18: 4 | AB18: =($B18/4926)*AB$2 -> 2 | AC18: 12 | AD18: 2 | AE18: 8 | AF18: 1
A19: 17 | B19: 317 | C19: 7 | D19: 12 | E19: 13 | F19: 22 | G19: 15 | H19: 13 | I19: 20 | J19: 16 | K19: 10 | L19: 26 | M19: 15 | N19: 9 | O19: 17 | P19: 14 | Q19: 26 | R19: 20 | S19: 9 | T19: 14 | U19: 15 | V19: 13 | W19: 9 | X19: 13 | Y19: 2 | Z19: 4 | AA19: 7 | AB19: 3 | AC19: 20 | AD19: 3 | AE19: 14 | AF19: 2
A20: 18 | B20: 280 | C20: 6 | D20: 11 | E20: 12 | F20: 19 | G20: 13 | H20: 12 | I20: 17 | J20: 14 | K20: 9 | L20: 23 | M20: 13 | N20: 8 | O20: 15 | P20: 13 | Q20: 23 | R20: 18 | S20: 8 | T20: 13 | U20: 14 | V20: 12 | W20: 8 | X20: 11 | Y20: 2 | Z20: 3 | AA20: 7 | AB20: 2 | AC20: 18 | AD20: 3 | AE20: 12 | AF20: 2
A21: 19 | B21: 650 | C21: 14 | D21: 25 | E21: 27 | F21: 45 | G21: 30 | H21: 27 | I21: 40 | J21: 32 | K21: 21 | L21: 53 | M21: 30 | N21: 19 | O21: 36 | P21: 29 | Q21: 53 | R21: 41 | S21: 19 | T21: 29 | U21: 31 | V21: 27 | W21: 19 | X21: 26 | Y21: 5 | Z21: 7 | AA21: 15 | AB21: 6 | AC21: 41 | AD21: 6 | AE21: 29 | AF21: 4
A22: 20 | B22: 166 | C22: 4 | D22: 6 | E22: 7 | F22: 11 | G22: 8 | H22: 7 | I22: 10 | J22: 8 | K22: 5 | L22: 14 | M22: 8 | N22: 5 | O22: 9 | P22: 7 | Q22: 13 | R22: 11 | S22: 5 | T22: 7 | U22: 8 | V22: 7 | W22: 5 | X22: 7 | Y22: 1 | Z22: 2 | AA22: 4 | AB22: 1 | AC22: 11 | AD22: 2 | AE22: 7 | AF22: =($B22/4926)*AF$2 -> 1
A23: 21 | B23: 200 | C23: 4 | D23: 8 | E23: 8 | F23: 14 | G23: 9 | H23: 8 | I23: 12 | J23: 10 | K23: 7 | L23: 16 | M23: 9 | N23: 6 | O23: 11 | P23: 9 | Q23: 16 | R23: 13 | S23: 6 | T23: 9 | U23: 10 | V23: 8 | W23: 6 | X23: 8 | Y23: 2 | Z23: 2 | AA23: 5 | AB23: 2 | AC23: 13 | AD23: 2 | AE23: 9 | AF23: =($B23/4926)*AF$2 -> 1
A24: 22 | B24: 196 | C24: 4 | D24: 7 | E24: 8 | F24: 14 | G24: 9 | H24: 8 | I24: 12 | J24: 10 | K24: 6 | L24: 16 | M24: 9 | N24: 6 | O24: 11 | P24: 9 | Q24: 16 | R24: 12 | S24: 6 | T24: 9 | U24: 9 | V24: 8 | W24: 6 | Y24: 80.8708134 | Z24: 8.55859375 | AA24: 71.6682243 | AB24: 11.40985222 | AC24: 38.41515475 | AD24: 17.59839357 | AE24: 13.33894945 | AF24: 14.96414343
A25: 23 | B25: 37 | C25: =$B25*C$2 -> 1 | D25: 1 | E25: 2 | F25: 3 | G25: 2 | H25: 2 | I25: 2 | J25: 2 | K25: 1 | L25: 3 | M25: 2 | N25: 1 | O25: 2 | P25: 2 | Q25: 3 | R25: 2 | S25: 1 | T25: 2 | U25: 2 | V25: 2 | W25: 1 | X25: 91.48579161 | Z25: 5.90625 | AA25: 49.45794393 | AB25: 7.873891626 | AC25: 26.51013874 | AD25: 12.14457831 | AE25: 9.205153617 | AF25: 10.32669323
A26: 24 | B26: 56 | C26: 1 | D26: 2 | E26: 2 | F26: 4 | G26: 3 | H26: 2 | I26: 3 | J26: 3 | K26: 2 | L26: 5 | M26: 3 | N26: 2 | O26: 3 | P26: 3 | Q26: 5 | R26: 4 | S26: 2 | T26: 3 | U26: 3 | V26: 2 | W26: 2 | X26: 11.85926928 | Y26: 7.234449761 | AA26: 6.411214953 | AB26: 1.020689655 | AC26: 3.436499466 | AD26: 1.574297189 | AE26: 1.193260654 | AF26: 1.338645418
A27: 25 | B27: 115 | C27: 2 | D27: 4 | E27: 5 | F27: 8 | G27: 5 | H27: 5 | I27: 7 | J27: 6 | K27: 4 | L27: 9 | M27: 5 | N27: 3 | O27: 6 | P27: 5 | Q27: 9 | R27: 7 | S27: 3 | T27: 5 | U27: 6 | V27: 5 | W27: 3 | X27: 83.01488498 | Y27: 50.64114833 | Z27: 5.359375 | AB27: 7.144827586 | AC27: 24.05549626 | AD27: 11.02008032 | AE27: 8.352824579 | AF27: 9.370517928
A28: 26 | B28: 43 | C28: =$B28*C$2 -> 1 | D28: 2 | E28: 2 | F28: 3 | G28: 2 | H28: 2 | I28: 3 | J28: 2 | K28: 1 | L28: 4 | M28: 2 | N28: 1 | O28: 2 | P28: 2 | Q28: 3 | R28: 3 | S28: 1 | T28: 2 | U28: 2 | V28: 2 | W28: 1 | X28: 15.67117727 | Y28: 9.559808612 | Z28: 1.01171875 | AA28: 8.471962617 | AC28: 4.541088581 | AD28: 2.080321285 | AE28: 1.576808722 | AF28: 1.768924303
A29: 27 | B29: 313 | C29: 7 | D29: 12 | E29: 13 | F29: 22 | G29: 15 | H29: 13 | I29: 19 | J29: 15 | K29: 10 | L29: 26 | M29: 15 | N29: 9 | O29: 17 | P29: 14 | Q29: 25 | R29: 20 | S29: 9 | T29: 14 | U29: 15 | V29: 13 | W29: 9 | X29: 48.70771313 | Y29: 29.71291866 | Z29: 3.14453125 | AA29: 26.3317757 | AB29: 4.192118227 | AD29: 6.465863454 | AE29: 4.900891972 | AF29: 5.498007968
A30: 28 | B30: 48 | C30: 1 | D30: 2 | E30: 2 | F30: 3 | G30: 2 | H30: 2 | I30: 3 | J30: =$B30*J$2 -> 2 | K30: 2 | L30: 4 | M30: 2 | N30: 1 | O30: 3 | P30: 2 | Q30: 4 | R30: 3 | S30: 1 | T30: 2 | U30: 2 | V30: 2 | W30: 1 | X30: 23.71853857 | Y30: 14.46889952 | Z30: 1.53125 | AA30: 12.82242991 | AB30: 2.04137931 | AC30: 6.872998933 | AE30: 2.386521308 | AF30: 2.677290837
A31: 29 | B31: 216 | C31: 5 | D31: 8 | E31: 9 | F31: 15 | G31: 10 | H31: 9 | I31: 13 | J31: 11 | K31: 7 | L31: 18 | M31: 10 | N31: 6 | O31: 12 | P31: 10 | Q31: 18 | R31: 14 | S31: 6 | T31: 10 | U31: 10 | V31: 9 | W31: 6 | X31: 18.21244926 | Y31: 11.11004785 | Z31: 1.17578125 | AA31: 9.845794393 | AB31: 1.567487685 | AC31: 5.277481323 | AD31: 2.417670683 | AF31: 2.055776892
A32: 30 | B32: 28 | C32: 1 | D32: 1 | E32: 1 | F32: 2 | G32: 1 | H32: 1 | I32: 2 | J32: 1 | K32: 1 | L32: 2 | M32: 1 | N32: 1 | O32: 2 | P32: 1 | Q32: 2 | R32: 2 | S32: 1 | T32: 1 | U32: 1 | V32: 1 | W32: 1 | X32: 20.33017591 | Y32: 12.40191388 | Z32: 1.3125 | AA32: 10.99065421 | AB32: 1.749753695 | AC32: 5.891141942 | AD32: 2.698795181 | AE32: 2.045589693

Sheet Arkusz2
C1: 1 | D1: 2 | E1: 3 | F1: 4 | G1: 5 | H1: 6 | I1: 7 | J1: 8 | K1: 9 | L1: 10 | M1: 11 | N1: 12 | O1: 13 | P1: 14 | Q1: 15 | R1: 16 | S1: 17 | T1: 18 | U1: 19 | V1: 20 | W1: 21 | X1: 22 | Y1: 23 | Z1: 24 | AA1: 25 | AB1: 26 | AC1: 27 | AD1: 28 | AE1: 29
B2: P/A | C2: 0.02150537634 | D2: 0.03812316716 | E2: 0.04203323558 | F2: 0.06920821114 | G2: 0.04672531769 | H2: 0.04183773216 | I2: 0.06217008798 | J2: 0.04926686217 | K2: 0.0330400782 | L2: 0.08211143695 | M2: 0.04672531769 | N2: 0.02913000978 | O2: 0.05474095797 | P2: 0.04516129032 | Q2: 0.08113391984 | R2: 0.06353861193 | S2: 0.0293255132 | T2: 0.04477028348 | U2: 0.04828934506 | V2: 0.04183773216 | W2: 0.0293255132 | X2: 196 | Y2: 37 | Z2: 56 | AA2: 115 | AB2: 43 | AC2: 313 | AD2: 48 | AE2: 216
A3: 1 | B3: 137 | C3: =$B3*C$2 -> 3 | D3: =$B3*D$2 -> 5 | E3: 6 | F3: 9 | G3: =$B3*G$2 -> 6 | H3: 6 | I3: 9 | J3: 7 | K3: 5 | L3: 11 | M3: 6 | N3: 4 | O3: 7 | P3: 6 | Q3: 11 | R3: 9 | S3: 4 | T3: 6 | U3: 7 | V3: 6 | W3: 4 | X3: =($B3/4926)*X$2 -> 5 | Y3: =($B3/4926)*Y$2 -> 1 | Z3: 2 | AA3: 3 | AB3: 1 | AC3: 9 | AD3: 1 | AE3: 6
A4: 2 | B4: 45 | C4: =$B4*C$2 -> 1 | D4: 2 | E4: 2 | F4: 3 | G4: 2 | H4: 2 | I4: 3 | J4: 2 | K4: 1 | L4: 4 | M4: 2 | N4: 1 | O4: 2 | P4: 2 | Q4: 4 | R4: 3 | S4: 1 | T4: 2 | U4: 2 | V4: 2 | W4: 1 | X4: =($B4/4926)*X$2 -> 2 | Y4: 0 | Z4: 1 | AA4: 1 | AB4: 0 | AC4: 3 | AD4: 0 | AE4: 2
A5: 3 | B5: 586 | C5: 13 | D5: 22 | E5: 25 | F5: 41 | G5: 27 | H5: 25 | I5: 36 | J5: 29 | K5: 19 | L5: 48 | M5: 27 | N5: 17 | O5: 32 | P5: 26 | Q5: 48 | R5: 37 | S5: 17 | T5: 26 | U5: 28 | V5: 25 | W5: 17 | X5: 23 | Y5: 4 | Z5: 7 | AA5: 14 | AB5: 5 | AC5: 37 | AD5: 6 | AE5: 26
A6: 4 | B6: 223 | C6: 5 | D6: 9 | E6: 9 | F6: 15 | G6: 10 | H6: 9 | I6: 14 | J6: 11 | K6: 7 | L6: 18 | M6: 10 | N6: 6 | O6: 12 | P6: 10 | Q6: 18 | R6: 14 | S6: 7 | T6: 10 | U6: 11 | V6: 9 | W6: 7 | X6: 9 | Y6: 2 | Z6: 3 | AA6: 5 | AB6: 2 | AC6: 14 | AD6: 2 | AE6: 10
A7: 5 | B7: 247 | C7: 5 | D7: 9 | E7: 10 | F7: 17 | G7: 12 | H7: 10 | I7: 15 | J7: 12 | K7: 8 | L7: 20 | M7: 12 | N7: 7 | O7: 14 | P7: 11 | Q7: 20 | R7: 16 | S7: 7 | T7: 11 | U7: 12 | V7: 10 | W7: 7 | X7: 10 | Y7: 2 | Z7: 3 | AA7: 6 | AB7: 2 | AC7: 16 | AD7: 2 | AE7: 11
A8: 6 | B8: 139 | C8: 3 | D8: 5 | E8: 6 | F8: 10 | G8: 6 | H8: 6 | I8: 9 | J8: 7 | K8: 5 | L8: 11 | M8: 6 | N8: 4 | O8: 8 | P8: 6 | Q8: 11 | R8: 9 | S8: 4 | T8: 6 | U8: 7 | V8: 6 | W8: 4 | X8: 6 | Y8: 1 | Z8: 2 | AA8: 3 | AB8: 1 | AC8: 9 | AD8: 1 | AE8: 6
A9: 7 | B9: 133 | C9: 3 | D9: 5 | E9: 6 | F9: 9 | G9: 6 | H9: 6 | I9: 8 | J9: 7 | K9: 4 | L9: 11 | M9: 6 | N9: 4 | O9: 7 | P9: 6 | Q9: 11 | R9: 8 | S9: 4 | T9: 6 | U9: 6 | V9: 6 | W9: 4 | X9: 5 | Y9: 1 | Z9: 2 | AA9: 3 | AB9: 1 | AC9: 8 | AD9: 1 | AE9: 6
A10: 8 | B10: 258 | C10: 6 | D10: 10 | E10: 11 | F10: 18 | G10: 12 | H10: 11 | I10: 16 | J10: 13 | K10: 9 | L10: 21 | M10: 12 | N10: 8 | O10: 14 | P10: 12 | Q10: 21 | R10: 16 | S10: 8 | T10: 12 | U10: 12 | V10: 11 | W10: 8 | X10: 10 | Y10: 2 | Z10: 3 | AA10: 6 | AB10: 2 | AC10: 16 | AD10: 3 | AE10: 11
A11: 9 | B11: 87 | C11: 2 | D11: 3 | E11: 4 | F11: 6 | G11: 4 | H11: 4 | I11: 5 | J11: 4 | K11: 3 | L11: 7 | M11: 4 | N11: 3 | O11: 5 | P11: 4 | Q11: 7 | R11: 6 | S11: 3 | T11: 4 | U11: 4 | V11: 4 | W11: 3 | X11: 3 | Y11: 1 | Z11: 1 | AA11: 2 | AB11: 1 | AC11: 6 | AD11: 1 | AE11: 4
A12: 10 | B12: 217 | C12: 5 | D12: 8 | E12: 9 | F12: 15 | G12: 10 | H12: 9 | I12: 13 | J12: 11 | K12: 7 | L12: 18 | M12: 10 | N12: 6 | O12: 12 | P12: 10 | Q12: 18 | R12: 14 | S12: 6 | T12: 10 | U12: 10 | V12: 9 | W12: 6 | X12: 9 | Y12: 2 | Z12: 2 | AA12: 5 | AB12: 2 | AC12: 14 | AD12: 2 | AE12: 10
A13: 11 | B13: 351 | C13: 8 | D13: 13 | E13: 15 | F13: 24 | G13: 16 | H13: 15 | I13: 22 | J13: 17 | K13: 12 | L13: 29 | M13: 16 | N13: 10 | O13: 19 | P13: 16 | Q13: 28 | R13: 22 | S13: 10 | T13: 16 | U13: 17 | V13: 15 | W13: 10 | X13: 14 | Y13: 3 | Z13: 4 | AA13: 8 | AB13: 3 | AC13: 22 | AD13: 3 | AE13: 15
A14: 12 | B14: 172 | C14: 4 | D14: 7 | E14: 7 | F14: 12 | G14: 8 | H14: 7 | I14: 11 | J14: 8 | K14: 6 | L14: 14 | M14: 8 | N14: 5 | O14: 9 | P14: 8 | Q14: 14 | R14: 11 | S14: 5 | T14: 8 | U14: 8 | V14: 7 | W14: 5 | X14: 7 | Y14: 1 | Z14: 2 | AA14: 4 | AB14: 2 | AC14: 11 | AD14: 2 | AE14: 8
A15: 13 | B15: 347 | C15: 7 | D15: 13 | E15: 15 | F15: 24 | G15: 16 | H15: 15 | I15: 22 | J15: 17 | K15: 11 | L15: 28 | M15: 16 | N15: 10 | O15: 19 | P15: 16 | Q15: 28 | R15: 22 | S15: 10 | T15: =$B15*T$2 -> 16 | U15: 17 | V15: 15 | W15: 10 | X15: 14 | Y15: 3 | Z15: 4 | AA15: 8 | AB15: 3 | AC15: 22 | AD15: 3 | AE15: 15
A16: 14 | B16: 144 | C16: 3 | D16: 5 | E16: 6 | F16: 10 | G16: 7 | H16: 6 | I16: 9 | J16: 7 | K16: 5 | L16: 12 | M16: 7 | N16: 4 | O16: 8 | P16: 7 | Q16: 12 | R16: 9 | S16: =$B16*S$2 -> 4 | T16: 6 | U16: 7 | V16: 6 | W16: 4 | X16: 6 | Y16: 1 | Z16: 2 | AA16: 3 | AB16: 1 | AC16: 9 | AD16: 1 | AE16: 6
A17: 15 | B17: 228 | C17: 5 | D17: 9 | E17: 10 | F17: 16 | G17: 11 | H17: 10 | I17: 14 | J17: 11 | K17: 8 | L17: 19 | M17: 11 | N17: 7 | O17: 12 | P17: 10 | Q17: 18 | R17: 14 | S17: 7 | T17: 10 | U17: 11 | V17: 10 | W17: 7 | X17: 9 | Y17: 2 | Z17: 3 | AA17: 5 | AB17: 2 | AC17: 14 | AD17: 2 | AE17: 10
A18: 16 | B18: 188 | C18: 4 | D18: 7 | E18: 8 | F18: 13 | G18: 9 | H18: 8 | I18: 12 | J18: 9 | K18: 6 | L18: 15 | M18: 9 | N18: 5 | O18: 10 | P18: 8 | Q18: 15 | R18: 12 | S18: 6 | T18: 8 | U18: 9 | V18: 8 | W18: 6 | X18: 7 | Y18: 1 | Z18: 2 | AA18: 4 | AB18: =($B18/4926)*AB$2 -> 2 | AC18: 12 | AD18: 2 | AE18: 8
A19: 17 | B19: 317 | C19: 7 | D19: 12 | E19: 13 | F19: 22 | G19: 15 | H19: 13 | I19: 20 | J19: 16 | K19: 10 | L19: 26 | M19: 15 | N19: 9 | O19: 17 | P19: 14 | Q19: 26 | R19: 20 | S19: 9 | T19: 14 | U19: 15 | V19: 13 | W19: 9 | X19: 13 | Y19: 2 | Z19: 4 | AA19: 7 | AB19: 3 | AC19: 20 | AD19: 3 | AE19: 14
A20: 18 | B20: 280 | C20: 6 | D20: 11 | E20: 12 | F20: 19 | G20: 13 | H20: 12 | I20: 17 | J20: 14 | K20: 9 | L20: 23 | M20: 13 | N20: 8 | O20: 15 | P20: 13 | Q20: 23 | R20: 18 | S20: 8 | T20: 13 | U20: 14 | V20: 12 | W20: 8 | X20: 11 | Y20: 2 | Z20: 3 | AA20: 7 | AB20: 2 | AC20: 18 | AD20: 3 | AE20: 12
A21: 19 | B21: 650 | C21: 14 | D21: 25 | E21: 27 | F21: 45 | G21: 30 | H21: 27 | I21: 40 | J21: 32 | K21: 21 | L21: 53 | M21: 30 | N21: 19 | O21: 36 | P21: 29 | Q21: 53 | R21: 41 | S21: 19 | T21: 29 | U21: 31 | V21: 27 | W21: 19 | X21: 26 | Y21: 5 | Z21: 7 | AA21: 15 | AB21: 6 | AC21: 41 | AD21: 6 | AE21: 29
A22: 20 | B22: 166 | C22: 4 | D22: 6 | E22: 7 | F22: 11 | G22: 8 | H22: 7 | I22: 10 | J22: 8 | K22: 5 | L22: 14 | M22: 8 | N22: 5 | O22: 9 | P22: 7 | Q22: 13 | R22: 11 | S22: 5 | T22: 7 | U22: 8 | V22: 7 | W22: 5 | X22: 7 | Y22: 1 | Z22: 2 | AA22: 4 | AB22: 1 | AC22: 11 | AD22: 2 | AE22: 7
A23: 21 | B23: 200 | C23: 4 | D23: 8 | E23: 8 | F23: 14 | G23: 9 | H23: 8 | I23: 12 | J23: 10 | K23: 7 | L23: 16 | M23: 9 | N23: 6 | O23: 11 | P23: 9 | Q23: 16 | R23: 13 | S23: 6 | T23: 9 | U23: 10 | V23: 8 | W23: 6 | X23: 8 | Y23: 2 | Z23: 2 | AA23: 5 | AB23: 2 | AC23: 13 | AD23: 2 | AE23: 9
A24: 22 | B24: 196 | C24: 4 | D24: 7 | E24: 8 | F24: 14 | G24: 9 | H24: 8 | I24: 12 | J24: 10 | K24: 6 | L24: 16 | M24: 9 | N24: 6 | O24: 11 | P24: 9 | Q24: 16 | R24: 12 | S24: 6 | T24: 9 | U24: 9 | V24: 8 | W24: 6 | Y24: 80.8708134 | Z24: 8.55859375 | AA24: 71.6682243 | AB24: 11.40985222 | AC24: 38.41515475 | AD24: 17.59839357 | AE24: 13.33894945
A25: 23 | B25: 37 | C25: =$B25*C$2 -> 1 | D25: 1 | E25: 2 | F25: 3 | G25: 2 | H25: 2 | I25: 2 | J25: 2 | K25: 1 | L25: 3 | M25: 2 | N25: 1 | O25: 2 | P25: 2 | Q25: 3 | R25: 2 | S25: 1 | T25: 2 | U25: 2 | V25: 2 | W25: 1 | X25: 91.48579161 | Z25: 5.90625 | AA25: 49.45794393 | AB25: 7.873891626 | AC25: 26.51013874 | AD25: 12.14457831 | AE25: 9.205153617
A26: 24 | B26: 56 | C26: 1 | D26: 2 | E26: 2 | F26: 4 | G26: 3 | H26: 2 | I26: 3 | J26: 3 | K26: 2 | L26: 5 | M26: 3 | N26: 2 | O26: 3 | P26: 3 | Q26: 5 | R26: 4 | S26: 2 | T26: 3 | U26: 3 | V26: 2 | W26: 2 | X26: 11.85926928 | Y26: 7.234449761 | AA26: 6.411214953 | AB26: 1.020689655 | AC26: 3.436499466 | AD26: 1.574297189 | AE26: 1.193260654
A27: 25 | B27: 115 | C27: 2 | D27: 4 | E27: 5 | F27: 8 | G27: 5 | H27: 5 | I27: 7 | J27: 6 | K27: 4 | L27: 9 | M27: 5 | N27: 3 | O27: 6 | P27: 5 | Q27: 9 | R27: 7 | S27: 3 | T27: 5 | U27: 6 | V27: 5 | W27: 3 | X27: 83.01488498 | Y27: 50.64114833 | Z27: 5.359375 | AB27: 7.144827586 | AC27: 24.05549626 | AD27: 11.02008032 | AE27: 8.352824579
A28: 26 | B28: 43 | C28: =$B28*C$2 -> 1 | D28: 2 | E28: 2 | F28: 3 | G28: 2 | H28: 2 | I28: 3 | J28: 2 | K28: 1 | L28: 4 | M28: 2 | N28: 1 | O28: 2 | P28: 2 | Q28: 3 | R28: 3 | S28: 1 | T28: 2 | U28: 2 | V28: 2 | W28: 1 | X28: 15.67117727 | Y28: 9.559808612 | Z28: 1.01171875 | AA28: 8.471962617 | AC28: 4.541088581 | AD28: 2.080321285 | AE28: 1.576808722
A29: 27 | B29: 313 | C29: 7 | D29: 12 | E29: 13 | F29: 22 | G29: 15 | H29: 13 | I29: 19 | J29: 15 | K29: 10 | L29: 26 | M29: 15 | N29: 9 | O29: 17 | P29: 14 | Q29: 25 | R29: 20 | S29: 9 | T29: 14 | U29: 15 | V29: 13 | W29: 9 | X29: 48.70771313 | Y29: 29.71291866 | Z29: 3.14453125 | AA29: 26.3317757 | AB29: 4.192118227 | AD29: 6.465863454 | AE29: 4.900891972
A30: 28 | B30: 48 | C30: 1 | D30: 2 | E30: 2 | F30: 3 | G30: 2 | H30: 2 | I30: 3 | J30: =$B30*J$2 -> 2 | K30: 2 | L30: 4 | M30: 2 | N30: 1 | O30: 3 | P30: 2 | Q30: 4 | R30: 3 | S30: 1 | T30: 2 | U30: 2 | V30: 2 | W30: 1 | X30: 23.71853857 | Y30: 14.46889952 | Z30: 1.53125 | AA30: 12.82242991 | AB30: 2.04137931 | AC30: 6.872998933 | AE30: 2.386521308
A31: 29 | B31: 216 | C31: 5 | D31: 8 | E31: 9 | F31: 15 | G31: 10 | H31: 9 | I31: 13 | J31: 11 | K31: 7 | L31: 18 | M31: 10 | N31: 6 | O31: 12 | P31: 10 | Q31: 18 | R31: 14 | S31: 6 | T31: 10 | U31: 10 | V31: 9 | W31: 6 | X31: 18.21244926 | Y31: 11.11004785 | Z31: 1.17578125 | AA31: 9.845794393 | AB31: 1.567487685 | AC31: 5.277481323 | AD31: 2.417670683

Sheet Więźba r. tranz
A2: Numer wlotu | B2: Wlot | C2: SDR [poj/dob.] | D2: Natężenie w godzinach szczytu popołudniowego | E2: natężenie w godzinach szczytu popołudniowego na jeden pas | F2: Wielkość tranzytu na wlocie | H2: wielkość traznytu na wlocie na jednym pasie
A4: 22 | B4: Jasło-Warzyce | C4: 13865 | D4: =0.12*C4 -> 1663.8 | E4: =0.5*D4 -> 831.9 | F4: =D4*(37.73/100) -> 627.75174 | G4: =TRUNC(F4) -> 627 | H4: =F4/2 -> 313.87587 | I4: =TRUNC(H4) -> 313
A5: 23 | B5: Bukowa-Jasło | C5: 9543 | D5: 1145.16 | E5: 572.58 | F5: =D5*(37.73/100) -> 432.068868 | G5: 432 | H5: 216.034434 | I5: 216
A6: 24 | B6: Opacie- Jasło | C6: 1800 | D6: 216 | E6: 108 | F6: =D6*(26.07/100) -> 56.3112 | G6: 56 | H6: 28.1556 | I6: 28
A7: 25 | B7: Siepietnica- Jasło | C7: 8668 | D7: 1040.16 | E7: 520.08 | F7: =D7*(37.73/100) -> 392.452368 | G7: 392 | H7: 196.226184 | I7: 196
A8: 26 | B8: Dębowiec- Jasło | C8: 2400 | D8: 288 | E8: 144 | F8: =D8*(26.07/100) -> 75.0816 | G8: 75 | H8: 37.5408 | I8: 37
A9: 27 | B9: N.Żmigród-Jasło | C9: 5093 | D9: 611.16 | E9: 305.58 | F9: =D9*(37.73/100) -> 230.590668 | G9: 230 | H9: 115.295334 | I9: 115
A10: 28 | B10: N.Glinik-Jasło | C10: 3600 | D10: 432 | E10: 216 | F10: =D10*(26.07/100) -> 112.6224 | G10: 112 | H10: 56.3112 | I10: 56
A11: 29 | B11: Tarnowiec-Jasło | C11: 2800 | D11: 336 | E11: 168 | F11: =D11*(26.07/100) -> 87.5952 | G11: 87 | H11: 43.7976 | I11: 43
A12: 30 | B12: Gorajowice-Jasło | C12: 3100 | D12: 372 | E12: 186 | F12: =D12*(26.07/100) -> 96.9804 | G12: 96 | H12: 48.4902 | I12: 48
I13: =SUM(I4:I12) -> 1052
H15: 313 | I15: 216 | J15: 28 | K15: 196 | L15: 37 | M15: 115 | N15: 56 | O15: 43 | P15: 48
F16: 22 | G16: 313 | I16: =($G16*I$15)/($I$13-I$15) -> 80.8708134 | J16: =($G16*J$15)/($I$13-J$15) -> 8.55859375 | K16: 71.6682243 | L16: 11.40985222 | M16: 38.41515475 | N16: 17.59839357 | O16: 13.33894945 | P16: 14.96414343
F17: 23 | G17: 216 | H17: =(G17*$H$15)/($I$13-$H$15) -> 91.48579161 | J17: =($G17*J$15)/($I$13-J$15) -> 5.90625 | K17: 49.45794393 | L17: 7.873891626 | M17: 26.51013874 | N17: 12.14457831 | O17: 9.205153617 | P17: 10.32669323
F18: 24 | G18: 28 | H18: =(G18*$H$15)/($I$13-$H$15) -> 11.85926928 | I18: 7.234449761 | K18: 6.411214953 | L18: 1.020689655 | M18: 3.436499466 | N18: 1.574297189 | O18: 1.193260654 | P18: 1.338645418
F19: 25 | G19: 196 | H19: =(G19*$H$15)/($I$13-$H$15) -> 83.01488498 | I19: 50.64114833 | J19: 5.359375 | L19: 7.144827586 | M19: 24.05549626 | N19: 11.02008032 | O19: 8.352824579 | P19: 9.370517928
F20: 26 | G20: 37 | H20: =(G20*$H$15)/($I$13-$H$15) -> 15.67117727 | I20: =($G20*I$15)/($I$13-I$15) -> 9.559808612 | J20: 1.01171875 | K20: 8.471962617 | M20: 4.541088581 | N20: 2.080321285 | O20: 1.576808722 | P20: =($G20*P$15)/($I$13-P$15) -> 1.768924303
F21: 27 | G21: 115 | H21: 48.70771313 | I21: 29.71291866 | J21: 3.14453125 | K21: 26.3317757 | L21: 4.192118227 | N21: 6.465863454 | O21: 4.900891972 | P21: 5.498007968
F22: 28 | G22: 56 | H22: 23.71853857 | I22: 14.46889952 | J22: 1.53125 | K22: 12.82242991 | L22: 2.04137931 | M22: 6.872998933 | O22: 2.386521308 | P22: 2.677290837
F23: 29 | G23: 43 | H23: 18.21244926 | I23: 11.11004785 | J23: 1.17578125 | K23: 9.845794393 | L23: 1.567487685 | M23: 5.277481323 | N23: 2.417670683 | P23: 2.055776892
F24: 30 | G24: 48 | H24: =(G24*$H$15)/($I$13-$H$15) -> 20.33017591 | I24: 12.40191388 | J24: 1.3125 | K24: 10.99065421 | L24: 1.749753695 | M24: 5.891141942 | N24: 2.698795181 | O24: 2.045589693
B34: Udział tranzytu uzależniony od funkcji wlotu
A36: Numer wlotu | B36: Funkcja | C36: Udział tranzytu[%]
A38: 21 | B38: tb=63,1-0,38*M | C38: =63.1-(0.38*66.756) -> 37.73272
A39: 22 | B39: tc=46,1-0,30*M | C39: =46.1-(0.3*66.756) -> 26.0732
A40: 23 | B40: tb=63,1-0,38*M | C40: =63.1-(0.38*66.756) -> 37.73272
A41: 24 | B41: tb=63,1-0,38*M | C41: =63.1-(0.38*66.756) -> 37.73272
A42: 25
A43: 26
A44: 27
A45: 28
A46: 29
